bitfinex-derivatives/quotes_SOLF0:USTF0_20250409
["timestamp","ask_amount","ask_price","bid_price","bid_amount"]
[1744165346251,0.06922092,104.44,104.39,2.3489]
[1744165346447,0.06922092,104.44,104.37,56.66]
[1744165346646,9.5856,104.42,104.38,9.5887]
[1744165346850,9.65304575,104.42,104.38,9.5887]
[1744165348154,9.586,104.41,104.37,68.517]
[1744165348351,0.06744575,104.42,104.37,68.517]
[1744165348651,0.06744575,104.42,104.37,58.9278]
[1744165349552,0.06744575,104.42,104.37,56.66]
[1744165349949,9.5882,104.39,104.37,56.66]
[1744165350150,9.5882,104.39,104.35,9.5909]
[1744165350350,0.07164719,104.39,104.34,95.08730792]
[1744165350557,0.07164719,104.39,104.38,9.5888]
[1744165351055,0.07164719,104.39,104.34,95.08730792]
[1744165352654,0.07164719,104.39,104.37,9.5896]
[1744165352956,4.5042,104.44,104.34,95.08730792]
[1744165353150,4.5042,104.44,104.37,9.5891]
[1744165353351,4.5042,104.44,104.34,95.08730792]
[1744165353754,9.5864,104.41,104.37,9.5892]
[1744165353964,4.5042,104.44,104.34,95.08730792]
[1744165354259,9.66029185,104.4,104.38,0.06910732]
[1744165354561,0.07309185,104.4,104.38,0.06910732]
[1744165354858,0.07309185,104.4,104.38,9.65780732]
[1744165355254,0.07309185,104.4,104.38,0.06910732]
[1744165355454,9.5878,104.39,104.38,0.06910732]
[1744165356557,9.66049185,104.4,104.38,0.06910732]
[1744165357156,0.07309185,104.4,104.38,0.06910732]
[1744165357870,9.5878,104.39,104.38,0.06910732]
[1744165358559,9.5897,104.37,104.34,66.2521]
[1744165358752,56.68,104.42,104.34,66.2521]
[1744165358959,9.5901,104.37,104.33,9.5929]
[1744165359670,0.06467325,104.36,104.34,9.5923]
[1744165360856,0.06467325,104.36,104.35,9.5915]
[1744165361468,56.68,104.42,104.38,9.5887]
[1744165361962,9.5864,104.41,104.38,9.5887]
[1744165362164,56.68,104.42,104.38,9.5887]
[1744165362363,56.68,104.42,104.37,9.5893]
[1744165362563,56.68,104.42,104.39,0.06772301]
[1744165362564,9.65175314,104.41,104.39,0.06772301]
[1744165362959,0.06565314,104.41,104.39,0.06772301]
[1744165363358,9.5869,104.4,104.39,0.06772301]
[1744165363559,2.45265314,104.41,104.35,2.3878]
[1744165363755,2.387,104.41,104.33,19.83632504]
[1744165364060,9.5897,104.37,104.33,19.83632504]
[1744165364256,2.387,104.41,104.33,19.83632504]
[1744165364659,9.65858695,104.38,104.34,9.5924]
[1744165364858,0.06928695,104.38,104.31,586.87202504]
[1744165365061,19.83632504,104.4,104.32,9.5936]
[1744165365254,0.07249227,104.36,104.31,586.87202504]
[1744165366256,0.07249227,104.36,104.34,9.5918]
[1744165366464,0.07249227,104.36,104.31,586.87202504]
[1744165366660,0.07249227,104.36,104.33,19.83632504]
[1744165366861,0.07249227,104.36,104.35,9.5915]
[1744165367061,2.387,104.41,104.35,19.83632504]
[1744165367376,2.387,104.41,104.37,9.5892]
[1744165367664,2.387,104.41,104.35,56.46]
[1744165367866,2.387,104.41,104.36,9.5901]
[1744165368262,0.07040815,104.4,104.37,0.06811278]
[1744165370465,9.5883,104.39,104.37,0.06811278]
[1744165370865,0.07040815,104.4,104.37,0.06811278]
[1744165371169,9.5883,104.39,104.37,0.06811278]
[1744165371671,9.65760815,104.4,104.37,0.06811278]
[1744165371971,0.07040815,104.4,104.37,0.06811278]
[1744165373070,0.07040815,104.4,104.39,9.5878]
[1744165374974,56.46,104.46,104.37,31.80486323]
[1744165375175,58.8117,104.46,104.37,31.80486323]
[1744165375375,9.5838,104.44,104.4,9.5861]
[1744165375674,58.8117,104.46,104.37,31.73675045]
[1744165376078,0.06704791,104.43,104.4,0.0672529]
[1744165376468,0.06704791,104.43,104.4,9.6534529]
[1744165376663,0.06704791,104.43,104.4,0.0672529]
[1744165376970,0.06704791,104.43,104.42,9.5851]
[1744165377171,0.06704791,104.43,104.4,56.5272529]
[1744165377672,0.06704791,104.43,104.41,9.5855]
[1744165378276,0.06704791,104.43,104.4,56.5272529]
[1744165378676,0.06704791,104.43,104.42,9.5851]
[1744165380286,0.06704791,104.43,104.4,56.5272529]
[1744165381180,0.06704791,104.43,104.42,9.5851]
[1744165385480,11.9293,104.48,104.41,4.5989]
[1744165385673,2.3492,104.48,104.41,36.33565045]
[1744165385981,2.3492,104.48,104.44,9.5826]
[1744165386182,9.5806,104.47,104.44,9.5826]
[1744165386385,9.65176187,104.47,104.44,9.65010414]
[1744165387082,0.07116187,104.47,104.46,9.5814]
[1744165391495,0.07116187,104.47,104.46,29.38856129]
[1744165392293,4.7683,104.52,104.5,9.5778]
[1744165392489,2.2871,104.54,104.48,75.98716129]
[1744165392693,4.7619,104.57,104.5,19.80716129]
[1744165392894,9.5741,104.54,104.5,19.80716129]
[1744165393094,7.049,104.57,104.5,19.80716129]
[1744165393490,9.5746,104.54,104.52,0.06326445]
[1744165393795,0.06728787,104.55,104.52,0.06326445]
[1744165394301,9.64088787,104.55,104.52,9.63916445]
[1744165395692,9.64088787,104.55,104.52,0.06326445]
[1744165395999,9.5742,104.54,104.52,0.06326445]
[1744165396202,0.06728787,104.55,104.52,9.63876445]
[1744165396501,9.64098787,104.55,104.52,9.63876445]
[1744165397302,9.64098787,104.55,104.52,0.06326445]
[1744165397499,0.06728787,104.55,104.52,0.06326445]
[1744165397994,9.64088787,104.55,104.52,9.63856445]
[1744165398200,0.06728787,104.55,104.52,0.06326445]
[1744165398504,9.5746,104.54,104.52,0.06326445]
[1744165398703,0.06728787,104.55,104.52,0.06326445]
[1744165399104,9.64108787,104.55,104.52,0.06326445]
[1744165399315,0.06728787,104.55,104.48,56.18]
[1744165399605,19.80716129,104.56,104.48,56.18]
[1744165399801,9.5763,104.52,104.48,56.18]
[1744165399998,9.5763,104.52,104.49,9.5786]
[1744165400591,0.06238348,104.52,104.49,0.06697567]
[1744165401006,19.86954477,104.52,104.45,56.16]
[1744165401302,4.4097,104.51,104.42,75.96716129]
[1744165401601,56.16,104.5,104.42,75.96716129]
[1744165401799,9.5816,104.46,104.43,9.5837]
[1744165402206,9.65158335,104.46,104.43,9.64910775]
[1744165402506,9.5824,104.45,104.43,0.06540775]
[1744165402805,0.06998335,104.46,104.43,0.06540775]
[1744165403208,9.65178335,104.46,104.43,9.64950775]
[1744165403506,0.06998335,104.46,104.43,0.06540775]
[1744165404501,0.06998335,104.46,104.45,9.5823]
[1744165405098,4.4097,104.51,104.48,9.579]
[1744165405507,75.96716129,104.56,104.46,75.96716129]
[1744165405702,4.6712,104.55,104.46,75.96716129]
[1744165406199,0.07099229,104.52,104.49,0.06351772]
[1744165406700,9.64739229,104.52,104.49,0.06351772]
[1744165407306,9.5775,104.51,104.49,0.06351772]
[1744165407494,0.07099229,104.52,104.49,0.06351772]
[1744165407698,0.07099229,104.52,104.49,9.64171772]
[1744165408399,9.5776,104.51,104.49,0.06351772]
[1744165408599,0.07099229,104.52,104.49,0.06351772]
[1744165408910,9.64739229,104.52,104.49,0.06351772]
[1744165410910,9.5769,104.51,104.49,0.06351772]
[1744165411908,9.64739229,104.52,104.49,0.06351772]
[1744165413616,9.577,104.51,104.49,0.06351772]
[1744165413800,0.07099229,104.52,104.49,0.06351772]
[1744165414312,0.07099229,104.52,104.5,9.5774]
[1744165414701,0.07099229,104.52,104.49,0.06351772]
[1744165415603,0.07099229,104.52,104.5,9.5772]
[1744165415804,0.07099229,104.52,104.49,0.06351772]
[1744165416506,0.07099229,104.52,104.49,31.73998552]
[1744165416810,0.07099229,104.52,104.5,56.16]
[1744165417203,0.07099229,104.52,104.5,65.737]
[1744165417712,0.07099229,104.52,104.5,56.16]
[1744165417907,0.07099229,104.52,104.51,9.5768]
[1744165419115,0.07099229,104.52,104.5,65.7372]
[1744165419613,0.07099229,104.52,104.51,9.5768]
[1744165420914,0.07099229,104.52,104.5,65.7371]
[1744165421315,0.07099229,104.52,104.49,0.06351772]
[1744165421909,9.64719229,104.52,104.49,9.64171772]
[1744165422413,9.64719229,104.52,104.49,0.06351772]
[1744165425017,0.07099229,104.52,104.49,0.06351772]
[1744165426224,0.07099229,104.52,104.44,55.92]
[1744165426225,55.92,104.51,104.44,55.92]
[1744165426417,4.7153,104.5,104.44,55.92]
[1744165426923,9.5803,104.48,104.44,65.5032]
[1744165427318,0.06238233,104.47,104.45,0.06156242]
[1744165427523,9.64328233,104.47,104.45,0.06156242]
[1744165428720,0.06238233,104.47,104.45,0.06156242]
[1744165429126,0.06238233,104.47,104.45,31.73803022]
[1744165429322,0.06238233,104.47,104.46,29.38028965]
[1744165429523,0.06238233,104.47,104.46,9.5814]
[1744165429717,0.06238233,104.47,104.46,29.38028965]
[1744165430024,9.5765,104.52,104.48,9.5796]
[1744165430216,2.3282,104.54,104.48,75.71888965]
[1744165430530,62.43103582,104.55,104.5,19.79888965]
[1744165430716,52.85733582,104.53,104.5,19.79888965]
[1744165430913,52.85733582,104.53,104.5,19.86867568]
[1744165431114,52.92816609,104.53,104.51,9.5761]
[1744165431823,52.92816609,104.53,104.52,9.5759]
[1744165432018,52.92816609,104.53,104.52,29.37478965]
[1744165433327,52.92816609,104.53,104.52,9.5759]
[1744165433919,0.07083027,104.53,104.52,9.5759]
[1744165436620,769.88667915,104.63,104.55,9.5727]
[1744165436621,52.85733582,104.62,104.55,9.5727]
[1744165436925,62.8469,104.6,104.52,36.16412877]
[1744165437126,62.8469,104.6,104.55,9.5725]
[1744165437929,9.63497748,104.59,104.56,0.06963548]
[1744165438334,9.63497748,104.59,104.56,9.64163548]
[1744165439336,9.5704,104.58,104.56,0.06963548]
[1744165439633,0.06497748,104.59,104.56,0.06963548]
[1744165439832,9.63497748,104.59,104.56,9.64163548]
[1744165441236,0.06497748,104.59,104.56,0.06963548]
[1744165441738,9.573,104.56,104.52,9.5755]
[1744165441927,55.9,104.59,104.48,60.569]
[1744165442128,33.40226077,104.58,104.48,55.9]
[1744165442329,31.64272877,104.58,104.48,65.4791]
[1744165442537,31.64272877,104.56,104.46,31.64272877]
[1744165442736,60.6467,104.55,104.45,561.32]
[1744165442938,9.5773,104.51,104.5,0.07120257]
[1744165443239,0.06562461,104.52,104.45,55.9]
[1744165443536,9.5785,104.5,104.46,9.5814]
[1744165444037,9.5785,104.5,104.47,9.5804]
[1744165444242,0.06448848,104.49,104.47,0.07121677]
[1744165444539,9.5764,104.52,104.48,9.5788]
[1744165444736,0.06790691,104.49,104.48,9.5788]
[1744165445332,0.06790691,104.49,104.47,9.64366834]
[1744165445835,0.06790691,104.49,104.47,0.06376834]
[1744165446537,9.64720691,104.49,104.47,0.06376834]
[1744165447741,9.5796,104.48,104.47,0.06376834]
[1744165450338,0.06790691,104.49,104.47,0.06376834]
[1744165451044,9.64700691,104.49,104.47,0.06376834]
[1744165451247,0.06790691,104.49,104.47,0.06376834]
[1744165451447,9.5796,104.48,104.47,0.06376834]
[1744165451647,2.33030691,104.49,104.42,87.56272877]
[1744165451834,2.2624,104.49,104.42,87.56272877]
[1744165452147,2.2624,104.49,104.43,9.5838]
[1744165452542,2.2624,104.49,104.4,537.00272877]
[1744165452847,0.07211719,104.47,104.45,0.06950278]
[1744165453047,0.07211719,104.47,104.39,55.68]
[1744165453247,9.5828,104.45,104.41,9.5855]
[1744165453748,2.2624,104.49,104.41,19.82475966]
[1744165454147,0.0632719,104.46,104.43,19.82475966]
[1744165454346,0.0632719,104.46,104.43,75.52475966]
[1744165455953,0.0632719,104.46,104.45,9.5823]
[1744165456655,0.0632719,104.46,104.43,19.82475966]
[1744165456855,9.6453719,104.46,104.41,19.82475966]
[1744165457353,0.0632719,104.46,104.41,19.82475966]
[1744165457557,9.6451719,104.46,104.41,19.82475966]
[1744165457855,9.6451719,104.46,104.43,9.5841]
[1744165458051,9.5824,104.45,104.41,19.82475966]
[1744165458257,0.0632719,104.46,104.41,19.82475966]
[1744165458659,9.5828,104.45,104.42,9.5847]
[1744165459560,9.6451719,104.46,104.43,9.584]
[1744165459758,0.0632719,104.46,104.41,19.82475966]
[1744165459955,0.0632719,104.46,104.43,19.82475966]
[1744165460259,0.0632719,104.46,104.44,9.5833]
[1744165460656,0.0632719,104.46,104.41,19.82475966]
[1744165461358,0.0632719,104.46,104.44,9.5831]
[1744165462263,0.0632719,104.46,104.41,19.82475966]
[1744165462456,9.583,104.45,104.41,19.82475966]
[1744165462652,0.0632719,104.46,104.41,19.82475966]
[1744165462958,0.0632719,104.46,104.42,9.5844]
[1744165463162,9.6451719,104.46,104.42,9.5844]
[1744165464462,9.6451719,104.46,104.43,9.5842]
[1744165464659,9.6451719,104.46,104.4,75.52475966]
[1744165465058,0.0632719,104.46,104.42,19.82475966]
[1744165465758,0.0632719,104.46,104.43,9.5837]
[1744165466767,0.0632719,104.46,104.4,75.52475966]
[1744165467163,9.5844,104.43,104.4,85.11145966]
[1744165467358,2.3757,104.45,104.4,85.11145966]
[1744165467559,0.07032367,104.43,104.4,85.11145966]
[1744165467761,0.07032367,104.43,104.38,19.82475966]
[1744165468164,55.77032367,104.43,104.36,19.82475966]
[1744165468359,9.5876,104.4,104.36,29.41485966]
[1744165468566,55.7,104.43,104.36,29.41485966]
[1744165468866,0.07352264,104.41,104.36,19.82475966]
[1744165469167,0.07352264,104.41,104.38,19.82475966]
[1744165469567,0.07352264,104.41,104.39,9.5873]
[1744165470064,0.07352264,104.41,104.38,19.82475966]
[1744165470667,0.07352264,104.41,104.4,9.5869]
[1744165470869,2.3757,104.45,104.4,19.82475966]
[1744165471266,2.3757,104.45,104.42,9.5846]
[1744165471459,2.3757,104.45,104.39,55.72]
[1744165471972,0.06088342,104.43,104.41,0.06036351]
[1744165472363,0.06088342,104.43,104.41,9.64626351]
[1744165472563,0.06088342,104.43,104.41,0.06036351]
[1744165474974,0.06088342,104.43,104.41,9.64626351]
[1744165475280,0.06088342,104.43,104.41,0.06036351]
[1744165475473,9.5851,104.42,104.41,0.06036351]
[1744165476172,0.06088342,104.43,104.41,0.06036351]
[1744165477274,0.06088342,104.43,104.41,9.64596351]
[1744165477876,0.06088342,104.43,104.42,9.5851]
[1744165478579,2.2459,104.48,104.45,9.5818]
[1744165478782,13.21433395,104.49,104.42,36.34864276]
[1744165479078,9.5805,104.47,104.44,9.5828]
[1744165479778,9.6422907,104.47,104.44,9.65059454]
[1744165480383,0.0617907,104.47,104.45,9.5821]
[1744165480680,0.0617907,104.47,104.44,0.06779454]
[1744165481279,9.6423907,104.47,104.44,9.65059454]
[1744165481777,0.0617907,104.47,104.44,87.2568373]
[1744165482281,0.0617907,104.47,104.45,9.5823]
[1744165482477,0.0617907,104.47,104.44,87.2568373]
[1744165482879,0.0617907,104.47,104.45,9.5823]
[1744165483379,0.0617907,104.47,104.44,65.13029454]
[1744165483679,0.0617907,104.47,104.44,55.54779454]
[1744165484581,0.0617907,104.47,104.44,0.06779454]
[1744165485080,9.6424907,104.47,104.44,0.06779454]
[1744165485277,0.0617907,104.47,104.44,9.65059454]
[1744165485580,0.0617907,104.47,104.44,0.06779454]
[1744165486175,9.5815,104.46,104.44,0.06779454]
[1744165487581,87.23083346,104.47,104.39,55.46]
[1744165487880,9.5855,104.42,104.39,65.0474]
[1744165488274,4.7986,104.45,104.39,65.0474]
[1744165488580,0.07201045,104.43,104.41,0.06297904]
[1744165489582,9.65661045,104.43,104.41,0.06297904]
[1744165490280,0.07201045,104.43,104.41,0.06297904]
[1744165490984,0.07201045,104.43,104.42,9.5851]
[1744165491585,9.5811,104.47,104.44,9.5828]
[1744165491883,9.5815,104.46,104.43,9.5836]
[1744165492480,52.85733582,104.48,104.43,0.06123084]
[1744165492789,0.07197225,104.46,104.43,0.06123084]
[1744165493085,55.55197225,104.46,104.43,0.06123084]
[1744165494002,55.55197225,104.46,104.39,55.46]
[1744165494182,2.23,104.45,104.38,2.3026]
[1744165494382,9.5865,104.41,104.38,9.5883]
[1744165494785,9.5859,104.42,104.38,9.5883]
[1744165495288,0.07083942,104.41,104.39,0.06437967]
[1744165496880,9.65693942,104.41,104.39,0.06437967]
[1744165497384,9.5869,104.4,104.39,0.06437967]
[1744165498278,9.65733942,104.41,104.39,0.06437967]
[1744165499184,0.07083942,104.41,104.39,0.06437967]
[1744165499586,9.65743942,104.41,104.39,0.06437967]
[1744165500586,9.5869,104.4,104.39,0.06437967]
[1744165500781,0.07083942,104.41,104.39,0.06437967]
[1744165501375,0.07083942,104.41,104.4,9.5869]
[1744165501577,0.07083942,104.41,104.39,0.06437967]
[1744165502981,9.65693942,104.41,104.39,0.06437967]
[1744165503889,0.07083942,104.41,104.39,0.06437967]
[1744165504786,9.5869,104.4,104.39,0.06437967]
[1744165505785,0.07083942,104.41,104.39,0.06437967]
[1744165506194,0.07083942,104.41,104.4,9.5869]
[1744165506385,65.15083942,104.41,104.31,1.66686624]
[1744165506687,2.3782,104.4,104.34,9.5921]
[1744165506898,2.3782,104.4,104.33,19.83360956]
[1744165507290,9.5892,104.38,104.35,9.5911]
[1744165507489,9.65541099,104.38,104.35,9.62234709]
[1744165507678,0.06621099,104.38,104.35,0.03124709]
[1744165507884,9.5906,104.36,104.35,0.03124709]
[1744165508484,9.5924,104.35,104.31,84.92830956]
[1744165508687,9.5924,104.35,104.31,75.33360956]
[1744165508886,7.1288,104.37,104.31,75.33360956]
[1744165509090,2.3331,104.37,104.33,19.83360956]
[1744165509286,55.5,104.41,104.35,19.83360956]
[1744165509483,9.5876,104.4,104.36,9.5901]
[1744165509688,0.06827244,104.39,104.36,9.5901]
[1744165509895,0.06827244,104.39,104.35,19.83360956]
[1744165510191,0.06827244,104.39,104.35,75.33360956]
[1744165510595,0.06827244,104.39,104.37,9.5889]
[1744165510890,218.70700748,104.44,104.37,19.83360956]
[1744165511091,218.70700748,104.44,104.38,9.5884]
[1744165511887,9.5874,104.4,104.37,9.5892]
[1744165512494,9.64792978,104.4,104.37,9.65747244]
[1744165513088,0.06052978,104.4,104.37,0.06827244]
[1744165513491,0.06052978,104.4,104.39,9.5878]
[1744165513896,0.06052978,104.4,104.37,0.06827244]
[1744165514090,0.06052978,104.4,104.38,9.5883]
[1744165514493,0.06052978,104.4,104.37,0.06827244]
[1744165514798,9.64762978,104.4,104.38,9.5887]
[1744165515001,9.64762978,104.4,104.37,0.06827244]
[1744165515600,9.64762978,104.4,104.37,9.65727244]
[1744165516998,0.06052978,104.4,104.39,9.5878]
[1744165522506,565.7686,104.47,104.43,9.5839]
[1744165522901,9.582,104.46,104.43,9.5839]
[1744165523402,9.5824,104.45,104.42,9.5846]
[1744165523707,0.06610062,104.46,104.43,0.0694273]
[1744165523902,59.8486,104.47,104.43,0.0694273]
[1744165524204,0.06782787,104.46,104.43,0.0694273]
[1744165525109,9.5825,104.45,104.43,0.0694273]
[1744165525808,9.64972787,104.46,104.43,9.6535273]
[1744165526003,0.06782787,104.46,104.43,9.6535273]
[1744165527009,9.64972787,104.46,104.43,9.6535273]
[1744165527917,9.64972787,104.46,104.43,0.0694273]
[1744165528413,9.5827,104.45,104.43,0.0694273]
[1744165529214,9.64962787,104.46,104.43,9.6535273]
[1744165529812,9.64962787,104.46,104.43,0.0694273]
[1744165531016,0.06782787,104.46,104.43,0.0694273]
[1744165531313,0.06782787,104.46,104.43,9.6532273]
[1744165531615,9.64982787,104.46,104.43,9.6532273]
[1744165532307,0.06782787,104.46,104.43,0.0694273]
[1744165533320,0.06782787,104.46,104.44,9.5832]
[1744165534126,0.06782787,104.46,104.43,0.0694273]
[1744165534428,55.30782787,104.46,104.39,55.24]
[1744165534623,4.5298,104.45,104.39,64.8274]
[1744165535523,0.06726155,104.43,104.41,0.05937492]
[1744165535820,9.5851,104.42,104.41,0.05937492]
[1744165536021,0.06726155,104.43,104.36,55.24]
[1744165536217,55.24,104.42,104.33,581.01148419]
[1744165536524,75.07148419,104.42,104.33,581.01148419]
[1744165536828,9.5896,104.38,104.34,9.592]
[1744165537039,75.07148419,104.42,104.34,9.592]
[1744165537237,0.0687447,104.37,104.34,9.592]
[1744165537524,0.0687447,104.37,104.33,581.01148419]
[1744165538025,0.0687447,104.37,104.36,9.5906]
[1744165538729,0.0687447,104.37,104.35,9.5911]
[1744165539424,9.6586447,104.37,104.34,9.5921]
[1744165539620,9.6586447,104.37,104.33,581.01148419]
[1744165539828,0.0687447,104.37,104.33,581.01148419]
[1744165540225,9.6588447,104.37,104.33,590.60438419]
[1744165540626,9.6588447,104.37,104.33,25.78228419]
[1744165540834,19.90022889,104.37,104.24,55.24]
[1744165541130,4.4807,104.36,104.28,19.83148419]
[1744165541328,9.5938,104.33,104.29,9.5966]
[1744165541531,0.06366097,104.32,104.28,19.83148419]
[1744165541831,0.06366097,104.32,104.29,9.5963]
[1744165542231,0.06366097,104.32,104.25,2.3054]
[1744165542419,9.5972,104.29,104.25,31.73748419]
[1744165542839,0.06177545,104.28,104.26,9.5997]
[1744165543032,0.06177545,104.28,104.27,19.83148419]
[1744165543231,55.24,104.34,104.26,31.78919112]
[1744165543535,0.07218082,104.29,104.28,9.5973]
[1744165543736,9.5934,104.33,104.26,31.78919112]
[1744165543926,4.4807,104.36,104.22,31.78919112]
[1744165544133,4.4807,104.36,104.25,31.78919112]
[1744165544531,4.4807,104.36,104.26,55.02]
[1744165544936,0.07191293,104.32,104.3,0.07218082]
[1744165545736,9.5952,104.31,104.3,0.07218082]
[1744165546534,0.07191293,104.32,104.3,0.07218082]
[1744165546936,9.66671293,104.32,104.3,0.07218082]
[1744165547138,0.07191293,104.32,104.3,0.07218082]
[1744165548038,9.66661293,104.32,104.3,0.07218082]
[1744165548336,0.07191293,104.32,104.3,0.07218082]
[1744165548835,31.78919112,104.4,104.33,9.5927]
[1744165549037,6.9163,104.39,104.33,9.5927]
[1744165549232,9.5907,104.36,104.33,9.5927]
[1744165549738,9.5907,104.36,104.32,9.5939]
[1744165549931,9.5907,104.36,104.31,4.7561]
[1744165550132,0.07005261,104.35,104.33,0.06497203]
[1744165551638,9.66225261,104.35,104.33,0.06497203]
[1744165551838,0.07005261,104.35,104.33,0.06497203]
[1744165552941,9.5924,104.34,104.33,0.06497203]
[1744165553743,0.07005261,104.35,104.33,0.06497203]
[1744165554333,0.07005261,104.35,104.33,9.65787203]
[1744165554938,0.07005261,104.35,104.34,9.5924]
[1744165555345,0.07005261,104.35,104.33,0.06497203]
[1744165555546,0.07005261,104.35,104.33,9.65777203]
[1744165557248,0.07005261,104.35,104.34,9.5924]
[1744165558251,11.9322,104.39,104.36,9.5903]
[1744165559346,2.40663275,104.39,104.36,0.06900642]
[1744165560053,9.5897,104.37,104.36,0.06900642]
[1744165560954,9.5919,104.35,104.31,66.967]
[1744165561149,57.42663275,104.39,104.31,66.967]
[1744165561349,57.3639,104.39,104.31,11.947]
[1744165561654,9.5919,104.35,104.32,9.5942]
[1744165561953,9.5919,104.35,104.31,2.3524]
[1744165562158,9.5925,104.34,104.32,0.07214474]
[1744165562455,0.07224134,104.35,104.32,0.07214474]
[1744165564257,9.5932,104.34,104.32,0.07214474]
[1744165566347,9.5934,104.33,104.32,0.07214474]
[1744165567354,77.23281659,104.34,104.26,62.0928]
[1744165567559,77.23281659,104.34,104.26,59.6774]
[1744165567857,9.5966,104.3,104.26,64.6392]
[1744165568259,77.23281659,104.34,104.27,9.5986]
[1744165568455,0.0648138,104.29,104.27,9.66390068]
[1744165568759,77.23281659,104.34,104.29,0.06909356]
[1744165568968,9.5958,104.31,104.29,0.06909356]
[1744165569468,0.06207854,104.33,104.29,0.06909356]
[1744165571261,9.5948,104.32,104.29,0.06909356]
[1744165572059,9.5952,104.31,104.29,0.06909356]
[1744165572767,9.5948,104.32,104.29,0.06909356]
[1744165573063,0.06207854,104.33,104.29,0.06909356]
[1744165573252,9.5975,104.29,104.21,34.05142929]
[1744165573671,9.5975,104.29,104.25,9.6001]
[1744165573974,4.5351,104.31,104.21,34.05142929]
[1744165574262,0.06452678,104.27,104.21,34.05142929]
[1744165574456,0.06452678,104.27,104.21,2.2521]
[1744165574858,0.06452678,104.27,104.21,11.856]
[1744165575166,9.6015,104.25,104.21,2.2521]
[1744165575366,54.82,104.3,104.22,9.603]
[1744165575567,0.07267944,104.24,104.22,9.603]
[1744165575768,54.82,104.3,104.22,9.603]
[1744165576068,0.06720444,104.24,104.22,9.603]
[1744165576263,31.79932929,104.29,104.17,86.61932929]
[1744165576469,0.07115639,104.24,104.19,36.27942929]
[1744165576767,0.07115639,104.24,104.19,4.4801]
[1744165576959,0.07115639,104.24,104.19,36.27942929]
[1744165577566,0.07115639,104.24,104.19,4.4801]
[1744165577767,0.07115639,104.24,104.13,9.6117]
[1744165577768,9.6085,104.17,104.13,9.6117]
[1744165577967,31.79932929,104.22,104.11,86.63932929]
[1744165578164,2.2551,104.23,104.14,31.79932929]
[1744165578460,4.6482,104.26,104.17,31.79932929]
[1744165578664,4.6482,104.26,104.18,2.2219]
[1744165578861,4.6482,104.26,104.19,54.84]
[1744165579069,4.6482,104.26,104.19,86.63932929]
[1744165579268,4.6482,104.26,104.2,2.3596]
[1744165579570,107.69733582,104.32,104.21,31.86654041]
[1744165579786,2.2963,104.31,104.23,31.79932929]
[1744165579965,9.5957,104.31,104.27,9.5984]
[1744165580363,57.38483582,104.32,104.25,2.3596]
[1744165580566,52.85733582,104.32,104.26,2.2008]
[1744165580777,0.07370306,104.3,104.27,31.86207236]
[1744165580965,52.85733582,104.32,104.28,54.84]
[1744165581267,41.91303582,104.32,104.29,31.79932929]
[1744165581467,37.88693582,104.32,104.29,31.79932929]
[1744165581665,37.88693582,104.32,104.28,54.84]
[1744165582172,0.06722326,104.31,104.29,0.06111006]
[1744165582568,0.06722326,104.31,104.29,31.86043935]
[1744165582762,0.06722326,104.31,104.3,9.5961]
[1744165582966,31.79932929,104.4,104.29,538.54043935]
[1744165583164,4.5275,104.37,104.29,538.54043935]
[1744165583368,4.5275,104.37,104.32,9.5937]
[1744165583875,4.5275,104.37,104.29,600.47932929]
[1744165584076,9.65832847,104.36,104.33,0.06185453]
[1744165585369,9.5921,104.35,104.33,0.06185453]
[1744165585567,0.06732847,104.36,104.33,0.06185453]
[1744165586672,0.06732847,104.36,104.28,54.84]
[1744165586972,59.3475,104.37,104.28,54.84]
[1744165587175,31.79932929,104.36,104.28,54.84]
[1744165587480,31.79932929,104.36,104.28,64.4374]
[1744165587669,31.79932929,104.36,104.28,54.84]
[1744165587869,0.06551131,104.33,104.31,0.06565994]
[1744165589070,9.5943,104.32,104.31,0.06565994]
[1744165589577,0.06551131,104.33,104.25,54.82]
[1744165589774,2.3775,104.32,104.25,54.82]
[1744165590671,0.06969248,104.3,104.27,9.6685569]
[1744165591582,0.06969248,104.3,104.28,9.5979]
[1744165592186,0.06969248,104.3,104.29,9.597]
[1744165592483,9.5929,104.34,104.29,54.82]
[1744165592678,9.5929,104.34,104.3,9.5956]
[1744165592879,2.3139,104.36,104.29,54.82]
[1744165593475,0.07302873,104.34,104.31,0.06485626]
[1744165594081,0.07302873,104.34,104.31,9.65915626]